bitfinex/quotes_ETHUSD_20240719
["timestamp","ask_amount","ask_price","bid_price","bid_amount"]
[1721350900958,3.0,3405.5,3405.4,0.00256084]
[1721350901522,3.6187707,3405.5,3405.4,0.00256084]
[1721350901721,12.0891907,3405.5,3405.4,0.00256084]
[1721350901952,15.0256107,3405.5,3405.4,0.00256084]
[1721350902153,17.4547107,3405.5,3405.4,0.00256084]
[1721350903034,12.0891907,3405.5,3405.4,0.00256084]
[1721350906236,3.6823507,3405.5,3405.4,0.00256084]
[1721350906475,3.0,3405.5,3405.4,0.00256084]
[1721350906661,5.93642,3405.5,3405.4,0.00256084]
[1721350907568,8.87284,3405.5,3405.4,0.00256084]
[1721350907869,5.93642,3405.5,3405.4,0.00256084]
[1721350910570,8.87284,3405.5,3405.4,0.00256084]
[1721350910747,5.93642,3405.5,3405.4,0.00256084]
[1721350913452,6.823699,3405.5,3405.4,0.00256084]
[1721350916879,9.760119,3405.5,3405.4,0.00256084]
[1721350919758,6.823699,3405.5,3405.4,0.00256084]
[1721350920459,3.0,3405.5,3405.4,0.00256084]
[1721350921595,8.87284,3405.5,3405.4,0.00256084]
[1721350921765,5.87284,3405.5,3405.4,0.00256084]
[1721350922088,8.87284,3405.5,3405.4,0.00256084]
[1721350923566,5.93642,3405.5,3405.4,0.00256084]
[1721350923763,9.760116,3405.5,3405.4,0.00256084]
[1721350926182,21.808956,3405.5,3405.4,0.00256084]
[1721350926506,21.808956,3405.5,3404.0,7.47]
[1721350926507,2.93753,3404.3,3404.1,2.4324]
[1721350926657,2.93728,3404.6,3404.1,2.4324]
[1721350926856,2.93738,3404.4,3404.1,2.4324]
[1721350927056,2.93723,3404.6,3404.1,2.4324]
[1721350927298,2.93739,3404.4,3404.1,2.4324]
[1721350927514,2.93746,3404.3,3404.1,2.4324]
[1721350927794,5.87499,3404.3,3404.1,2.4324]
[1721350928009,2.93746,3404.3,3404.1,2.4324]
[1721350928156,5.87508,3404.2,3404.1,2.4324]
[1721350928354,5.87508,3404.2,3403.5,2.93811]
[1721350928355,2.93769,3404.1,3403.6,2.3792]
[1721350928601,2.93772,3404.0,3403.6,2.3792]
[1721350928801,2.534,3404.7,3403.6,2.3792]
[1721350928998,2.93797,3403.8,3403.6,2.3792]
[1721350929361,2.93821,3403.5,3403.1,2.3232]
[1721350929855,2.93824,3403.4,3403.1,2.3232]
[1721350930517,2.93855,3403.1,3402.7,2.4668]
[1721350930677,2.93838,3403.3,3402.7,2.4668]
[1721350930887,2.93817,3403.5,3402.9,2.93866]
[1721350931271,2.93817,3403.5,3402.7,5.40563]
[1721350931272,2.93837,3403.3,3402.7,5.40563]
[1721350931472,2.93817,3403.5,3402.9,2.93866]
[1721350932574,2.93817,3403.5,3403.0,2.93858]
[1721350932794,2.93817,3403.5,3402.8,2.93869]
[1721350932975,2.93797,3403.7,3402.9,2.93866]
[1721350933203,3.0,3403.8,3403.0,2.93854]
[1721350933412,2.938,3403.7,3403.0,2.93854]
[1721350933772,3.0,3403.8,3403.2,2.93838]
[1721350933977,3.0,3404.2,3403.1,2.3655]
[1721350934213,3.0,3404.2,3403.1,5.30394]
[1721350934424,2.93808,3403.6,3403.1,2.3655]
[1721350934709,2.93795,3403.8,3403.2,2.93839]
[1721350934874,2.93798,3403.7,3403.1,2.3655]
[1721350935070,2.93798,3403.7,3403.1,5.30397]
[1721350936114,2.93798,3403.7,3403.2,2.9384]
[1721350937133,0.84714,3404.1,3403.5,2.93812]
[1721350937296,5.93761,3404.2,3403.4,2.93823]
[1721350937627,2.93763,3404.1,3403.5,2.93814]
[1721350937971,5.93759,3404.2,3403.6,2.93805]
[1721350938214,3.0,3404.2,3403.7,2.93792]
[1721350938416,3.0,3404.3,3403.8,2.93787]
[1721350938629,2.93712,3404.7,3403.9,2.375]
[1721350938787,2.93712,3404.7,3404.0,2.93765]
[1721350938990,2.93712,3404.7,3404.1,2.93763]
[1721350939187,2.93712,3404.7,3404.1,2.93762]
[1721350939621,2.9366,3405.3,3404.4,2.93737]
[1721350939622,2.93662,3405.3,3404.4,2.93737]
[1721350939822,0.887276,3405.5,3404.2,2.375]
[1721350939823,2.93649,3405.5,3404.2,2.375]
[1721350940139,2.93649,3405.5,3404.7,2.93707]
[1721350940140,2.9366,3405.3,3404.7,2.93707]
[1721350940723,2.93649,3405.5,3404.7,2.93707]
[1721350940939,2.93651,3405.4,3404.7,2.93707]
[1721350941078,2.93663,3405.3,3404.7,2.93707]
[1721350941282,2.93668,3405.2,3404.5,2.93722]
[1721350941499,2.93646,3405.5,3404.6,0.293722]
[1721350941731,2.93646,3405.5,3404.7,2.93709]
[1721350941914,2.93646,3405.5,3404.8,2.93702]
[1721350942096,5.93651,3405.4,3404.8,2.93702]
[1721350943923,2.9366,3405.3,3404.6,2.93714]
[1721350944223,2.9366,3405.3,3404.7,2.93711]
[1721350944224,3.0,3405.2,3404.7,2.93711]
[1721350944721,2.93678,3405.1,3404.5,2.93725]
[1721350944906,0.887338,3405.1,3404.2,2.375]
[1721350945211,2.93713,3404.7,3404.2,2.375]
[1721350945413,2.937,3404.9,3404.4,2.93737]
[1721350945615,2.93703,3404.8,3404.2,5.31248]
[1721350946382,2.93725,3404.6,3404.0,2.93765]
[1721350946629,2.93725,3404.6,3403.9,2.93774]
[1721350946926,2.93708,3404.8,3404.2,2.93749]
[1721350947800,5.87419,3404.8,3404.2,2.93749]
[1721350947992,2.93708,3404.8,3404.2,2.93749]
[1721350948483,2.93708,3404.8,3404.3,2.93743]
[1721350948700,2.9368,3405.1,3404.5,2.93726]
[1721350948877,2.9368,3405.1,3404.6,2.3449]
[1721350948878,3.0,3405.0,3404.6,2.3449]
[1721350949387,3.0,3405.0,3404.6,5.28204]
[1721350949589,3.0,3405.2,3404.6,5.28204]
[1721350950108,4.27606029,3405.2,3404.6,5.28204]
[1721350950311,4.27606029,3405.2,3404.6,2.3449]
[1721350950612,2.93685,3405.0,3404.4,2.93731]
[1721350950820,2.93679,3405.1,3404.4,2.93731]
[1721350951118,1.27606029,3405.2,3404.2,5.28443]
[1721350951119,3.0,3405.0,3404.2,5.28443]
[1721350951414,2.93708,3404.8,3404.2,5.28443]
[1721350951616,2.93708,3404.8,3404.2,2.3469]
[1721350951924,0.42760603,3404.9,3404.2,2.3469]
[1721350952133,0.42760603,3404.9,3403.8,2.93785]
[1721350952134,2.93711,3404.7,3403.9,2.93778]
[1721350952293,2.9373,3404.5,3403.9,2.93778]
[1721350952877,5.87466,3404.5,3403.9,2.93778]
[1721350953810,2.9373,3404.5,3403.9,2.93778]
[1721350955378,3.524744,3404.5,3403.8,2.3302]
[1721350955579,2.93772,3404.0,3403.4,2.3952]
[1721350955844,2.93796,3403.8,3403.4,2.3952]
[1721350956411,5.87554,3404.0,3403.4,2.3952]
[1721350956711,2.93781,3403.9,3403.4,2.3952]
[1721350956912,2.93759,3404.2,3403.4,2.3952]
[1721350957122,2.93777,3404.0,3403.4,5.33338]
[1721350958105,0.593759,3404.1,3403.5,2.9381]
[1721350958306,3.0,3404.1,3403.7,2.93793]
[1721350958493,5.93738,3404.4,3403.7,5.87586]
[1721350958707,3.0,3404.4,3403.9,2.9378]
[1721350958891,1.6881944,3404.4,3403.9,2.9378]
[1721350959388,6.524784,3404.5,3403.9,2.9378]
[1721350959926,2.93753,3404.3,3403.7,2.93791]
[1721350960523,3.0,3404.2,3403.7,2.93791]
[1721350960925,5.93761,3404.2,3403.5,2.93814]
[1721350961118,5.93761,3404.2,3403.6,2.93806]
[1721350961317,6.8838684,3404.2,3403.6,2.93806]
[1721350962029,2.93764,3404.1,3403.6,2.93806]
[1721350962604,2.93764,3404.1,3403.5,2.93814]
[1721350962804,2.93764,3404.1,3403.5,5.87622]
[1721350963055,3.9462584,3404.2,3403.5,2.93808]
[1721350963255,3.0,3404.2,3403.5,2.93808]
[1721350963401,3.0,3404.2,3403.6,2.93798]
[1721350963803,3.0,3404.2,3403.7,2.93795]
[1721350964125,3.0,3404.4,3403.9,2.93775]
[1721350964626,2.93715,3404.7,3403.9,2.93775]
[1721350964809,2.93704,3404.8,3404.2,2.93747]
[1721350965022,2.9372,3404.6,3404.1,2.2813]
[1721350965547,2.93704,3404.8,3404.1,5.21887]
[1721350965728,2.93689,3405.0,3404.1,5.21887]
[1721350966046,3.230579,3405.0,3404.3,2.93737]
[1721350966342,0.293689,3405.0,3404.5,2.93728]
[1721350967203,3.293689,3405.0,3404.5,2.93728]
[1721350969145,2.93712,3404.7,3404.1,5.21888]
[1721350969344,2.93733,3404.5,3404.1,2.2813]
[1721350969944,3.230922,3404.6,3404.1,5.21892]
[1721350970450,2.93734,3404.5,3403.9,2.93774]
[1721350970653,3.230922,3404.6,3404.0,2.93769]
[1721350970967,3.230922,3404.6,3403.8,2.93784]
[1721350970968,3.230922,3404.6,3403.8,2.93785]
[1721350971105,3.230922,3404.6,3404.0,2.93767]
[1721350971308,0.6167972,3404.5,3404.0,2.93767]
[1721350971610,0.6167972,3404.5,3404.0,2.93765]
[1721350971815,2.93707,3404.8,3404.3,2.93745]
[1721350972040,6.230579,3405.0,3404.5,2.93728]
[1721350972041,3.293689,3405.0,3404.5,2.93728]
[1721350972501,3.0,3404.9,3404.5,2.93728]
[1721350972837,0.293689,3405.0,3404.5,2.93728]
[1721350973142,3.0,3405.1,3404.5,2.93728]
[1721350973304,3.0,3405.1,3404.7,2.9371]
[1721350973505,3.0,3405.1,3404.5,5.87451]
[1721350973730,3.0,3405.1,3404.5,2.93723]
[1721350974220,3.0,3405.1,3404.5,5.87445]
[1721350974814,3.0,3405.1,3404.6,2.9372]
[1721350975238,3.93337327,3405.1,3404.6,2.9372]
[1721350978503,3.93337327,3405.1,3404.7,2.93711]
[1721350979400,3.93337327,3405.1,3404.5,2.93723]
[1721350979962,3.93337327,3405.1,3404.6,2.93719]
[1721350980503,3.93337327,3405.1,3404.7,2.9371]
[1721350981300,3.93337327,3405.1,3404.5,2.9372]
[1721350981916,2.93712,3404.7,3404.0,2.93765]
[1721350982416,2.93742,3404.4,3403.8,2.93789]
[1721350983943,5.87488,3404.4,3403.8,2.93789]
[1721350984237,2.93759,3404.2,3403.7,2.405]
[1721350986839,2.93737,3404.4,3403.7,2.405]
[1721350987312,2.93751,3404.3,3403.7,2.405]
[1721350987708,2.93751,3404.3,3403.7,5.34295]
[1721350991352,2.93756,3404.2,3403.7,5.34295]
[1721350991517,2.93768,3404.1,3403.7,2.405]
[1721350991712,2.93793,3403.8,3403.2,2.2646]
[1721350991950,3.52551,3403.8,3403.2,2.2646]
[1721350992243,3.52551,3403.8,3403.2,5.20299]
[1721350994232,2.93798,3403.7,3403.2,5.20299]
[1721350994554,2.93798,3403.7,3403.2,2.2646]
[1721350995460,0.58758,3403.8,3403.2,2.2646]
[1721350995461,2.93821,3403.5,3403.2,2.2646]
[1721350995667,2.93821,3403.5,3402.8,2.3553]
[1721350996066,2.93821,3403.5,3402.9,2.93861]
[1721350996363,2.93821,3403.5,3402.8,2.3553]
[1721350996733,2.93821,3403.5,3402.9,2.9386]
[1721350997276,2.93821,3403.5,3403.0,2.93856]
[1721350997764,2.93821,3403.5,3402.8,2.3553]
[1721350997765,2.93846,3403.2,3402.8,2.3553]
[1721350999631,5.87658,3403.4,3402.8,2.3553]
[1721350999843,2.93838,3403.3,3402.8,2.3553]
[1721351000048,2.93841,3403.2,3402.8,2.3553]
[1721351003039,5.87689,3403.2,3402.8,2.3553]
[1721351003242,2.93853,3403.1,3402.8,2.3553]
[1721351004254,2.93822,3403.5,3402.4,2.93904]
[1721351004596,2.455,3403.8,3402.4,2.93904]
[1721351004597,2.93856,3403.1,3402.5,2.93899]
[1721351004899,10.42,3404.1,3403.2,2.4883]
[1721351005041,2.9379,3403.8,3403.2,5.42666]
[1721351005441,2.93777,3404.0,3403.4,2.93823]
[1721351005990,2.93762,3404.2,3403.5,2.93813]
[1721351006283,2.93772,3404.0,3403.2,5.42666]
[1721351006441,2.9379,3403.8,3403.2,5.42666]
[1721351006637,2.9379,3403.8,3403.2,8.36499]
[1721351006840,2.8379,3403.8,3403.2,8.36499]
[1721351007071,2.93798,3403.7,3403.2,2.4883]
[1721351007374,2.93794,3403.8,3403.1,2.93847]
[1721351007550,2.2879,3404.0,3403.1,3.766931]
[1721351007551,2.938,3403.7,3403.1,3.766931]
[1721351007975,2.93806,3403.6,3403.1,3.766931]
[1721351008352,2.93795,3403.8,3403.1,6.705301]
[1721351008553,2.93795,3403.8,3403.2,2.9384]
[1721351008942,2.93777,3404.0,3403.4,2.93823]
[1721351009144,0.4605642,3404.1,3403.5,5.41155]
[1721351009359,3.4605642,3404.1,3403.6,2.93804]
[1721351009590,0.4605642,3404.1,3403.6,2.93804]
[1721351010143,3.4605642,3404.1,3403.6,2.93804]
[1721351010347,3.4605642,3404.1,3403.5,2.79065905]
[1721351010593,2.93777,3404.0,3403.5,2.79065905]
[1721351011098,3.4605642,3404.1,3403.6,0.828461]
[1721351011448,6.3982142,3404.1,3403.6,0.828461]
[1721351011761,3.4605642,3404.1,3403.6,2.93805]
[1721351011960,6.3982042,3404.1,3403.5,2.4734]
[1721351012889,6.3982042,3404.1,3403.5,5.41154]
[1721351013064,6.3982042,3404.1,3403.5,2.4734]
[1721351013462,6.3982042,3404.1,3403.5,5.41155]
[1721351014156,3.0,3404.1,3403.6,2.93806]
[1721351014357,3.0,3404.2,3403.6,3.773021]
[1721351014664,2.93765,3404.1,3403.6,0.834961]
[1721351014898,2.93765,3404.1,3403.5,2.4734]
[1721351015067,2.93765,3404.1,3403.5,5.41153]
[1721351015884,2.93765,3404.1,3403.5,5.41149]
[1721351016269,2.93765,3404.1,3403.5,8.34958]
[1721351016594,5.93755,3404.2,3403.6,2.93805]
[1721351017926,5.93755,3404.2,3402.7,3.098]
[1721351017927,0.8210028,3404.1,3403.2,2.3377]
[1721351018212,2.93786,3403.9,3403.2,2.3377]
[1721351018413,2.93803,3403.7,3403.2,2.3377]
[1721351018572,2.93789,3403.8,3403.2,5.2761]
[1721351018785,2.93786,3403.9,3403.2,2.3377]
[1721351019097,2.93786,3403.9,3403.4,2.93823]
[1721351020391,2.93797,3403.8,3403.2,5.27604]
[1721351020804,2.9378,3404.0,3403.4,2.9382]
[1721351021012,2.9378,3404.0,3403.5,2.93811]
[1721351021226,5.93763,3404.2,3403.5,2.93811]
[1721351021530,2.93764,3404.1,3403.5,2.93811]
[1721351021679,5.87535,3404.1,3403.5,2.93811]
[1721351021880,2.93774,3404.0,3403.3,2.93824]
[1721351022124,2.9378,3403.9,3403.3,2.93824]
[1721351022334,1.058,3403.8,3403.3,2.93824]
[1721351022481,1.058,3403.8,3403.4,2.93823]
[1721351022682,1.058,3403.8,3403.5,2.93814]
[1721351024985,1.058,3403.8,3403.4,2.93823]
[1721351025185,1.058,3403.8,3403.4,2.93817]
[1721351027131,1.058,3403.8,3403.4,5.87636]
[1721351027288,1.058,3403.8,3403.4,2.93817]
[1721351029629,3.99589,3403.8,3403.3,0.82143]
[1721351029951,3.0,3404.2,3403.2,2.3377]
[1721351029952,3.99607,3403.6,3403.2,2.3377]
[1721351030957,2.93873,3402.9,3402.6,0.61519684]
[1721351031304,3.99675,3402.8,3402.3,5.21111]
[1721351031471,1.058,3402.8,3402.3,5.21118]
[1721351031960,2.93867,3402.9,3402.3,5.21118]
[1721351032161,5.87742,3402.9,3402.3,5.21118]
[1721351032876,2.93867,3402.9,3402.3,5.21118]
[1721351033357,2.93875,3402.8,3402.3,5.21118]
[1721351033562,2.93875,3402.8,3402.3,2.272]
[1721351034145,3.232625,3402.8,3402.3,2.272]
[1721351034394,2.9391,3402.4,3402.3,0.011]
[1721351034536,5.8782,3402.4,3402.3,0.011]
[1721351034885,2.9391,3402.4,3402.3,0.011]
[1721351035496,3.781013,3402.4,3402.3,0.011]
[1721351036310,6.720113,3402.4,3402.3,0.011]
[1721351036513,15.007013,3402.4,3402.3,0.011]
[1721351036790,12.067913,3402.4,3402.3,0.011]
[1721351036943,3.841913,3402.4,3402.3,0.011]
[1721351037389,6.781013,3402.4,3402.3,0.011]
[1721351037960,12.124613,3402.4,3402.3,0.011]
[1721351038167,12.124613,3402.4,3402.0,0.01]
[1721351038168,2.93936,3402.1,3402.0,0.01]
[1721351038392,6.7637373,3402.1,3402.0,0.01]
[1721351038751,9.7637373,3402.1,3402.0,0.01]
[1721351038985,12.7030973,3402.1,3402.0,0.01]
[1721351039210,12.7030973,3402.1,3401.9,0.005]
[1721351039211,8.97688,3402.0,3401.9,0.005]
[1721351039479,15.46632,3402.0,3401.9,0.005]
[1721351039722,18.03722958,3402.0,3401.9,0.005]
[1721351040027,18.03722958,3402.0,3401.4,0.005]
[1721351040028,5.87974,3401.5,3401.4,0.005]
[1721351040178,8.42074,3401.5,3401.4,0.005]
[1721351040379,11.42074,3401.5,3401.4,0.005]
[1721351040605,8.48087,3401.5,3401.4,0.005]
[1721351040819,9.932739,3401.5,3401.4,0.005]
[1721351041032,6.992869,3401.5,3401.4,0.005]
[1721351041335,2.57090958,3402.0,3401.5,2.93987]
[1721351041480,0.841913,3402.4,3401.4,0.005]
[1721351041685,0.841913,3402.4,3401.7,2.93968]
[1721351041882,2.541,3402.7,3402.0,2.93944]
[1721351042081,2.251,3402.9,3402.0,2.93944]
[1721351042283,2.93879,3402.8,3402.0,2.93938]
[1721351042486,2.93879,3402.8,3402.1,2.93934]
[1721351043684,2.93879,3402.8,3401.9,2.93952]
[1721351043685,2.93885,3402.7,3401.9,2.93952]
[1721351043881,2.93885,3402.7,3401.5,2.93982]
[1721351043882,2.541,3402.3,3401.5,2.93982]
[1721351044190,2.9393,3402.2,3401.4,0.005]
[1721351044410,2.9393,3402.2,3401.4,2.94491]
[1721351044584,2.541,3402.3,3401.5,2.93987]
[1721351044784,3.751864,3402.6,3401.9,2.93951]
[1721351045030,3.6292864,3402.5,3401.9,2.93951]
[1721351045218,6.5683264,3402.5,3401.9,2.93951]
[1721351045422,3.0,3402.5,3402.1,2.9393]
[1721351045639,2.541,3402.7,3401.9,2.93951]
[1721351045640,3.0,3402.6,3401.9,2.93951]
[1721351045932,5.93893,3402.6,3402.0,2.93936]
[1721351046682,2.93902,3402.5,3401.8,2.93956]
[1721351046997,3.0,3402.4,3401.8,2.93956]
[1721351047198,3.848002,3402.4,3401.8,2.93956]
[1721351047648,3.848002,3402.4,3402.1,2.93928]
[1721351047783,2.541,3402.7,3402.1,2.93928]
[1721351047784,3.0,3402.6,3402.1,2.93928]
[1721351049584,3.0,3402.6,3402.2,2.9392]
[1721351050042,3.0,3402.6,3402.2,2.93926]
[1721351050820,3.0,3402.6,3402.4,2.93909]
[1721351051022,3.0,3402.6,3401.5,2.93984]
[1721351051023,3.0,3403.0,3402.3,2.4343]
[1721351051325,2.2904,3403.9,3402.4,0.30221108]
[1721351051326,7.42,3403.9,3402.4,0.30221108]
[1721351051525,2.541,3404.3,3403.4,2.93817]
[1721351051526,2.93761,3404.2,3403.4,2.93817]
[1721351051829,2.2904,3404.4,3403.2,2.4343]
[1721351051830,2.93739,3404.4,3403.7,2.93792]
[1721351052133,2.9373,3404.5,3403.7,2.93792]
[1721351052561,2.9373,3404.5,3403.9,2.93775]
[1721351052853,0.88759685,3404.4,3403.9,2.93775]
[1721351053059,0.88759685,3404.4,3404.0,2.93771]
[1721351053377,0.88759685,3404.4,3403.8,2.93783]
[1721351053680,3.82503685,3404.4,3403.8,2.93788]
[1721351053958,6.82503685,3404.4,3403.8,2.93788]
[1721351054159,1.02227753,3404.3,3403.8,2.93788]
[1721351054363,2.541,3403.9,3403.3,2.93824]
[1721351054574,3.0,3403.8,3403.3,2.93824]
[1721351054924,3.0,3403.8,3403.1,2.93848]
[1721351055295,0.847887,3403.7,3403.1,2.93848]
[1721351056185,0.847887,3403.7,3402.3,7.47]
[1721351056363,2.93815,3403.5,3401.9,3.0]
[1721351056559,3.0,3403.4,3402.8,2.93868]
[1721351056769,0.593815,3403.3,3402.8,2.93868]
[1721351057186,0.593815,3403.3,3402.6,2.93889]
[1721351057187,3.532165,3403.3,3402.6,2.93889]
[1721351057399,3.0,3403.2,3402.5,2.93894]
[1721351057605,5.93842,3403.2,3402.2,5.25766]
[1721351057785,5.93842,3403.2,3402.3,2.93913]
[1721351057786,2.93867,3402.9,3402.3,2.93913]
[1721351058115,0.887709,3402.9,3402.4,2.9391]
[1721351058257,3.0,3403.2,3402.8,2.9387]
[1721351058455,0.593815,3403.3,3402.8,2.9387]
[1721351059695,0.593815,3403.3,3402.2,2.3184]
[1721351059909,0.593815,3403.3,3402.5,2.93898]
[1721351060071,3.0,3403.3,3402.8,2.93874]
[1721351060555,5.93832,3403.3,3402.6,2.93886]
[1721351060764,2.93858,3403.0,3402.3,2.93918]
[1721351061004,3.0,3402.9,3402.3,2.93918]
[1721351061296,5.93869,3402.9,3402.3,2.93918]
[1721351061514,0.887718,3402.8,3402.4,2.93909]
[1721351061717,0.887718,3402.8,3402.3,2.93918]
[1721351061871,3.887718,3402.8,3402.0,2.93943]
[1721351062071,2.93896,3402.6,3402.1,2.93935]
[1721351062275,3.0,3402.7,3402.2,2.93927]
[1721351062463,3.9765138,3402.7,3402.3,2.93917]
[1721351062663,0.9765138,3402.7,3402.1,2.93935]
[1721351062896,3.9153538,3402.7,3402.1,2.93935]
[1721351063635,5.93895,3402.6,3401.9,2.9395]
[1721351063807,1.28543038,3402.5,3401.9,2.9395]
[1721351064210,5.93895,3402.6,3402.0,2.93943]
[1721351066256,5.93895,3402.6,3402.0,2.93942]
[1721351066436,2.93919,3402.3,3401.7,2.366]
[1721351066765,2.93933,3402.2,3401.5,2.93987]
[1721351066924,2.93942,3402.1,3401.4,0.005]
[1721351067313,2.93958,3401.9,3401.4,0.005]
[1721351067541,2.93976,3401.7,3401.4,0.005]
[1721351067739,3.0,3401.8,3401.4,0.005]
[1721351067941,3.533708,3401.7,3401.4,0.005]
[1721351068121,2.93979,3401.6,3401.4,0.005]
[1721351068838,0.593958,3401.7,3401.4,0.005]
[1721351070392,5.87974,3401.5,3401.4,0.005]
[1721351070682,8.42074,3401.5,3401.4,0.005]
[1721351070852,12.9161838,3401.5,3401.4,0.005]
[1721351071044,16.4060538,3401.5,3401.4,0.005]
[1721351071239,19.5040538,3401.5,3401.4,0.005]
[1721351071471,8.81988,3401.4,3401.3,0.34623795]
[1721351071675,5.88096,3400.8,3400.7,0.1500639]
[1721351071853,7.072894,3400.8,3400.7,0.1500639]
[1721351072063,10.072894,3400.8,3400.7,0.1500639]
[1721351072265,16.111374,3400.8,3400.7,0.1500639]
[1721351072463,16.661374,3400.8,3400.7,0.1500639]
[1721351072785,13.563374,3400.8,3400.7,0.1500639]
[1721351072990,2.94104,3400.2,3399.5,2.8916]
[1721351073198,2.94114,3400.1,3399.5,2.8916]
[1721351074693,2.94085,3400.4,3399.8,2.94134]
[1721351074992,3.46107097,3400.3,3399.7,2.94142]
[1721351075147,3.46107097,3400.3,3399.6,2.3983]
[1721351075370,2.94079,3400.5,3399.9,2.94119]
[1721351075567,3.0,3400.4,3399.9,2.94119]
[1721351075775,5.94083,3400.4,3399.7,2.94136]
[1721351076088,5.94083,3400.4,3399.8,2.94132]
[1721351076931,3.0,3400.4,3400.0,2.94111]
[1721351077087,0.46105778,3400.6,3400.3,2.94087]
[1721351077293,2.94051,3400.8,3399.9,2.94122]
[1721351077618,2.94052,3400.8,3399.9,2.94122]
[1721351077773,2.94063,3400.7,3400.0,2.94117]
[1721351078127,2.94079,3400.5,3399.9,2.94122]
[1721351078721,2.94079,3400.5,3400.0,2.94116]
[1721351078931,6.40146709,3400.9,3400.1,2.94108]
[1721351079127,3.46102709,3400.9,3400.1,2.94108]
[1721351079433,0.46102709,3400.9,3400.1,0.294108]
[1721351079640,0.46102709,3400.9,3400.7,2.94051]
[1721351079922,0.46102709,3400.9,3400.8,8.29076]
[1721351080632,7.42,3401.8,3401.4,2.93994]
[1721351080771,0.46091404,3401.9,3401.4,2.93994]
[1721351080972,4.03441044,3401.9,3401.4,2.93994]
[1721351081209,4.03441044,3401.9,3401.5,2.93987]
[1721351081210,1.09488044,3401.9,3401.5,2.93987]
[1721351081776,1.09488044,3401.9,3401.4,2.93994]
[1721351082299,0.46091404,3401.9,3401.7,2.93964]
[1721351082671,0.46091404,3401.9,3401.5,2.93981]
[1721351082873,5.93927,3402.2,3401.5,2.93981]
[1721351083075,0.887849,3402.1,3401.3,2.93998]
[1721351083317,2.93945,3402.0,3401.1,2.94019]
[1721351083824,3.0,3401.9,3401.3,2.94005]
[1721351084129,3.0,3401.9,3401.4,2.93996]
[1721351084325,3.0,3401.9,3401.7,2.93967]
[1721351084626,3.46088649,3402.3,3401.7,2.93967]
[1721351084787,0.89410165,3402.2,3401.5,2.93987]
[1721351084991,0.89410165,3402.2,3401.3,2.93999]
[1721351085318,0.89410165,3402.2,3400.8,2.4098]
[1721351085319,2.93945,3402.0,3401.1,2.94019]
[1721351085527,3.0,3401.9,3401.3,2.93998]
[1721351085831,3.0,3401.9,3401.3,2.94]
[1721351085976,3.97728917,3401.9,3401.5,2.93985]
[1721351086180,0.97728917,3401.9,3401.5,2.93985]
[1721351086371,3.0,3401.8,3401.3,5.88004]
[1721351086576,3.91688917,3401.9,3401.3,2.93999]
[1721351086779,3.0,3401.8,3401.3,2.93999]
[1721351087009,0.69168892,3401.7,3401.3,2.93999]
[1721351087389,0.69168892,3401.7,3401.4,2.93996]
[1721351087606,0.97728917,3401.9,3401.3,2.93999]
[1721351088504,3.91687917,3401.9,3401.3,2.93999]
[1721351088695,3.0,3401.8,3401.3,2.93999]
[1721351089593,5.93962,3401.8,3401.1,2.94015]
[1721351089984,3.0,3401.8,3401.1,2.94015]
[1721351090181,0.94578192,3401.8,3401.3,2.93997]
[1721351090528,0.94578192,3401.8,3401.4,2.93996]
[1721351090885,0.94578192,3401.8,3401.3,2.93997]
[1721351091295,0.94578192,3401.8,3401.4,2.93995]
[1721351091514,3.0,3401.9,3400.8,2.4098]
[1721351091829,0.89410165,3402.2,3401.8,2.93962]
[1721351091994,3.89410165,3402.2,3401.8,2.93962]
[1721351092577,0.89410165,3402.2,3401.8,2.93962]
[1721351093195,3.83342165,3402.2,3401.6,2.93978]
[1721351093510,4.02334381,3402.1,3401.6,2.93978]
[1721351093697,4.02334381,3402.1,3401.4,2.93993]
[1721351093897,2.93945,3402.0,3401.4,2.93993]
[1721351094135,3.0,3401.9,3401.4,2.93993]
[1721351094834,3.0,3401.9,3401.2,2.94007]
[1721351094979,0.69627938,3401.8,3401.4,2.93991]
[1721351095609,0.69627938,3401.8,3401.2,2.94006]
[1721351095996,3.0,3402.0,3401.5,2.93983]
[1721351096281,3.0,3402.0,3401.7,2.93969]
[1721351096487,4.02334381,3402.1,3401.7,2.93969]
[1721351098010,3.0,3402.0,3401.7,2.93969]
[1721351098391,1.02334381,3402.1,3401.7,2.93969]
[1721351098592,0.74234703,3402.0,3401.7,2.93969]
[1721351099334,3.0,3402.2,3400.8,2.4098]
[1721351099539,0.46088649,3402.3,3402.0,2.93943]
[1721351099704,0.46088649,3402.3,3402.1,2.93935]
[1721351099888,0.46088649,3402.3,3402.2,2.93927]
[1721351100339,2.93858,3403.0,3402.2,2.9392]
[1721351100486,2.93858,3403.0,3402.3,2.93912]
[1721351100487,0.46079411,3402.8,3402.3,2.93912]
[1721351101222,0.46079411,3402.8,3402.1,2.93929]
[1721351101420,2.93897,3402.6,3402.0,2.93938]
[1721351101613,3.0,3402.5,3402.0,2.93938]
[1721351101789,3.0,3402.5,3402.1,2.93935]
[1721351101994,3.0,3402.5,3402.2,2.93926]
[1721351101995,3.93385541,3402.5,3402.2,2.93926]
[1721351102198,0.93385541,3402.5,3402.2,2.93926]
[1721351102451,3.0,3402.7,3402.2,2.93926]
[1721351102730,0.46079411,3402.8,3402.6,2.93892]